{"text_format":"1","workbook":"xlsx","n_sheets":1,"sheets":["Tabelle1"],"not_rendered":{"charts":0,"images":1,"macros":1,"external_links":0,"defined_names":7,"comments":0,"pivot_tables":0},"unopened":[],"bounds":{"document_bytes":16777216,"sheet_cells":100000,"rows_first":2000,"rows_last":500,"rows_between":2000,"halvings":0,"cell_chars":16384,"cell_head_chars":4096},"cells_cut":0,"cells_raw":0,"read":"whole","date_system":"1900"}

{"sheet":"Tabelle1","index":0,"n_rows":226,"n_cols":25,"rows_kept":226,"cut":false,"hidden":false,"merged":[[84,0,84,26],[140,24,144,26],[145,24,149,26],[12,4,12,26],[56,21,62,23],[70,24,76,26],[70,21,76,23],[63,24,69,26],[13,1,13,26],[121,21,125,23],[126,21,131,23],[99,24,105,26],[106,24,111,26],[99,21,105,23],[106,21,111,23],[86,9,86,20],[86,4,86,6],[70,9,76,20],[56,24,62,26],[86,21,86,23],[86,24,86,26],[32,9,36,20],[37,9,41,20],[99,9,105,20],[106,9,111,20],[50,24,55,26],[63,21,69,23],[42,21,46,23],[88,24,92,26],[88,21,92,23],[115,21,120,23],[90,4,91,6],[226,9,227,26],[170,1,172,2],[186,1,186,7],[188,1,190,2],[180,4,184,26],[192,4,196,26],[80,3,83,10],[121,9,125,20],[123,4,124,6],[128,4,129,6],[142,4,143,6],[147,4,148,6],[140,9,144,20],[145,9,149,20],[115,9,120,20],[88,9,92,20],[93,9,98,20],[154,24,154,26],[115,24,120,26],[121,24,125,26],[126,24,131,26],[145,21,149,23],[153,24,153,26],[132,24,136,26],[0,8,0,26],[14,20,14,26],[23,1,23,23],[37,24,41,26],[32,21,36,23],[26,24,31,26],[32,24,36,26],[24,21,24,23],[2,1,4,26],[6,1,6,3],[8,1,8,3],[10,1,10,3],[12,1,12,3],[6,4,6,26],[8,4,8,26],[10,4,10,26],[24,24,24,26],[24,9,24,20],[26,21,31,23],[37,21,41,23],[5,1,5,26],[7,1,7,26],[9,1,9,26],[11,1,11,26],[221,1,222,6],[215,2,216,8],[199,5,199,26],[155,6,155,23],[200,1,200,26],[134,4,135,6],[93,24,98,26],[93,21,98,23],[95,4,96,6],[101,4,102,6],[108,4,109,6],[117,4,118,6],[208,1,211,26],[201,1,204,26],[153,6,153,23],[154,6,154,23],[140,21,144,23],[221,9,222,26],[226,1,227,6],[132,9,136,20],[126,9,131,20],[132,21,136,23],[155,24,155,26],[17,3,20,9],[28,4,29,6],[34,4,35,6],[39,4,40,6],[44,4,45,6],[52,4,53,6],[58,4,59,6],[65,4,66,6],[72,4,73,6],[26,9,31,20],[63,9,69,20],[17,11,20,26],[50,21,55,23],[42,9,46,20],[50,9,55,20],[56,9,62,20],[80,12,83,26],[24,4,24,6],[42,24,46,26]]}
[null,null,null,null,null,null,null,null,"BILDUNGSBERICHT"]
[]
[null,"In der Bildungsverodnung, Abschnitt 7, ist festgehalten, dass die Berufsbildnerin oder der Berufsbildner den Bildungsstand der lernenden Person - insbesondere gestützt auf die Lerndokumentation - festhält, benotet und mit ihr mindestens einmal pro Semester bespricht."]
[]
[]
[]
[null,"Lehrbetrieb:"]
[]
[null,"Lernende Person:"]
[]
[null,"Lehrberuf:"]
[]
[null,"Verantwortlich für die Ausbildungsperiode:"]
[]
[null,"Semester","1.",null,"2.",null,"3.",null,"4.",null,"5.",null,"6.",null,"7.",null,"8.",null,null,null,"(mit X kennzeichnen)"]
[]
[]
[null,"Beurteilung (Punkte)",null,"6 = sehr gut         \n5 = gut\n4 = genügend",null,null,null,null,null,null,null,"3 = ungenügend (Fördermassnahmen nötig)        \n2 = schwach (besondere Massnahmen nötig)\n1 = schlecht (dringende Massnahmen nötig) "]
[]
[]
[]
[]
[]
[null,"Die folgenden Kompetenzen (Punkt 1-4) sind im Abschnitt 2 der Bildungsverordnung aufgeführt "]
["1.","Fachkompetenz",null,null,"Punkte",null,null,null,null,"Begründung + Ergänzungen ",null,null,null,null,null,null,null,null,null,null,null,"Faktor",null,null,"Summe"]
[]
[null,null,null,null,null,null,null,null,null,null,null,null,null,null,null,null,null,null,null,null,null,5,null,null,{"$f":"SUM(E29*V27)","v":30}]
[1.1000000000000001,"Ausbildungsstand"]
[null,"Gesamtbeurteilung gemäss den im ",null,null,6]
[null,"Bildungsplan aufgeführten"]
[null,"Bildungszielen"]
[]
[null,null,null,null,null,null,null,null,null,null,null,null,null,null,null,null,null,null,null,null,null,5,null,null,{"$f":"SUM(E35*V33)","v":30}]
[1.2,"Arbeitsqualität"]
[null,"Genauigkeit / Sorgfalt",null,null,6]
[]
[]
[null,null,null,null,null,null,null,null,null,null,null,null,null,null,null,null,null,null,null,null,null,5,null,null,{"$f":"SUM(E40*V38)","v":30}]
[1.3,"Arbeitsmenge, Arbeitstempo"]
[null,"Zeitaufwand für sachgerechte",null,null,6]
[null,"Ausführung der Arbeiten"]
[]
[null,null,null,null,null,null,null,null,null,null,null,null,null,null,null,null,null,null,null,null,null,5,null,null,{"$f":"SUM(E45*V43)","v":30}]
[1.4,"Umsetzung der Berufskenntnisse"]
[null,"Verbindung von Theorie und Praxis",null,null,6]
[]
[]
[]
["2.","Methodenkompetenz"]
[]
[null,null,null,null,null,null,null,null,null,null,null,null,null,null,null,null,null,null,null,null,null,1,null,null,{"$f":"SUM(E53*V51)","v":6}]
[2.1,"Arbeitstechnik"]
[null,"Arbeitsplatzgestaltung / Einsatz der",null,null,6]
[null,"Mittel / Reflexion der Aufträge /"]
[null,"Rückfragen"]
[]
[null,null,null,null,null,null,null,null,null,null,null,null,null,null,null,null,null,null,null,null,null,1,null,null,{"$f":"SUM(E59*V57)","v":6}]
[2.2000000000000002,"Vernetztes Denken und Handeln"]
[null,"Verstehen und Nachvollziehen von",null,null,6]
[null,"Arbeitsabläufen und -prozessen /"]
[null,"Eigene Beiträge"]
[null,"Verbesserungsvorschläge"]
[]
[null,null,null,null,null,null,null,null,null,null,null,null,null,null,null,null,null,null,null,null,null,1,null,null,{"$f":"SUM(E66*V64)","v":6}]
[2.2999999999999998,"Umgang mit Mitteln und"]
[null,"Betriebseinrichtungen",null,null,6]
[null,"Ökologisches Verhalten /"]
[null,"Materialverbrauch / Entsorgung /"]
[null,"Sorgfalt / Pflege der Einrichtungen"]
[]
[null,null,null,null,null,null,null,null,null,null,null,null,null,null,null,null,null,null,null,null,null,1,null,null,{"$f":"SUM(E73*V71)","v":6}]
[2.4,"Lern- und Arbeitsstrategie"]
[null,"Bewusste Steuerung der eigenen",null,null,6]
[null,"Lernprozesse / Prozesse und"]
[null,"Sachverhalte erklären und"]
[null,"präsentieren"]
[]
[]
[]
[]
[null,"Beurteilung (Note)",null,"6 = sehr gut         \n5 = gut\n4 = genügend",null,null,null,null,null,null,null,null,"3 = ungenügend (Fördermassnahmen nötig)        \n2 = schwach (besondere Massnahmen nötig)\n1 = schlecht (dringende Massnahmen nötig) "]
[]
[]
[]
[]
[]
["3.","Sozialkompetenz",null,null,"Punkte",null,null,null,null,"Begründung + Ergänzungen ",null,null,null,null,null,null,null,null,null,null,null,"Faktor",null,null,"Summe"]
[]
[null,null,null,null,null,null,null,null,null,null,null,null,null,null,null,null,null,null,null,null,null,1,null,null,{"$f":"SUM(E91*V89)","v":6}]
[3.1,"Teamfähigkeit, Konfliktfähigkeit"]
[null,"Beitrag zum Betriebsklima /",null,null,6]
[null,"Ehrlichkeit / Umgang mit Kritik"]
[]
[null,null,null,null,null,null,null,null,null,null,null,null,null,null,null,null,null,null,null,null,null,1,null,null,{"$f":"SUM(E96*V94)","v":6}]
[3.2,"Zusammenarbeit"]
[null,"Verständnis für andere / Sich in andere",null,null,6]
[null,"einfühlen (Empathie)"]
[]
[]
[null,null,null,null,null,null,null,null,null,null,null,null,null,null,null,null,null,null,null,null,null,1,null,null,{"$f":"SUM(E102*V100)","v":6}]
[3.3,"Information und Kommunikation"]
[null,"Sich verständlich ausdrücken /",null,null,6]
[null,"Berücksichtigen der Sichtweise"]
[null,"anderer / Informationsprozesse kennen"]
[null,"und entsprechend handeln"]
[]
[null,null,null,null,null,null,null,null,null,null,null,null,null,null,null,null,null,null,null,null,null,1,null,null,{"$f":"SUM(E109*V107)","v":6}]
[3.4,"Kundenorientiertes Handeln"]
[null,"Umgang mit Kunden /",null,null,6]
[null,"Kundenbedürfnisse erfassen /"]
[null,"Hilfsbereitschaft / Freundlichkeit"]
[]
[]
["4.","Selbstkompetenz"]
[]
[null,null,null,null,null,null,null,null,null,null,null,null,null,null,null,null,null,null,null,null,null,1,null,null,{"$f":"SUM(E118*V116)","v":6}]
[4.0999999999999996,"Selbständigkeit,"]
[null,"eigenverantwortliches Handeln",null,null,6]
[null,"Eigeninitiative, Verantwortungs-"]
[null,"bewusstsein, Eigene Beiträge leisten"]
[]
[null,null,null,null,null,null,null,null,null,null,null,null,null,null,null,null,null,null,null,null,null,1,null,null,{"$f":"SUM(E124*V122)","v":6}]
[4.2,"Zuverlässigkeit, Belastbarkeit"]
[null,"Pünktlichkeit / Termineinhaltung",null,null,6]
[null,"Durchhaltewillen"]
[]
[null,null,null,null,null,null,null,null,null,null,null,null,null,null,null,null,null,null,null,null,null,1,null,null,{"$f":"SUM(E129*V127)","v":6}]
[4.3,"Umgangsformen"]
[null,"Situationsgerechtes Verhalten und",null,null,6]
[null,"Auftreten / Freundlichkeit / Äussere"]
[null,"Erscheinung"]
[]
[null,null,null,null,null,null,null,null,null,null,null,null,null,null,null,null,null,null,null,null,null,1,null,null,{"$f":"SUM(E135*V133)","v":6}]
[4.4000000000000004,"Motivation"]
[null,"Einstellung zum Beruf / Begeisterungs-",null,null,6]
[null,"fähigkeit / Lernbereitschaft"]
[]
[]
["5.","Lerndokumentation"]
[]
[null,null,null,null,null,null,null,null,null,null,null,null,null,null,null,null,null,null,null,null,null,2,null,null,{"$f":"SUM(E143*V141)","v":12}]
[5.0999999999999996,"Sachliche Richtigkeit, "]
[null,"Vollständigkeit",null,null,6]
[]
[]
[null,null,null,null,null,null,null,null,null,null,null,null,null,null,null,null,null,null,null,null,null,1,null,null,{"$f":"SUM(E148*V146)","v":6}]
[5.2,"Sauberkeit, Darstellung,"]
[null,"Übersichtlichkeit",null,null,6]
[]
[]
[]
["6.","Erfahrungsnote Betrieb"]
[]
[null,null,null,null,null,null,"Erreichte Punktzahl (max. 210 Punkte)",null,null,null,null,null,null,null,null,null,null,null,null,null,null,null,null,null,{"$f":"SUM(Y146,Y141,Y133,Y127,Y122,Y116,Y107,Y100,Y94,Y89,Y71,Y64,Y57,Y51,Y43,Y38,Y33,Y27)","v":210}]
[null,null,null,null,null,null,"Note ungerundet",null,null,null,null,null,null,null,null,null,null,null,null,null,null,null,null,null,{"$f":"(Y154/210)*6","v":6}]
[null,null,null,null,null,null,"Semesternote (auf halbe Note gerundet)",null,null,null,null,null,null,null,null,null,null,null,null,null,null,null,null,null,{"$f":"IF(Y155=\"\",\"\",ROUND(Y155/0.5,0)*0.5)","v":6}]
[]
[]
[]
[]
["7.","Beurteilen der Ausbildung durch die lernende Person"]
[null,null,null,null,null,null,null,null,null,null,null,null,null,"ja",null,null,null,"nein"]
[7.1,"Hat der Berufsbildner die Ausbildungsziele aus dem Bildungsplan",null,null,null,null,null,null,null,null,null,null,null,null,null,null,null,null,"          (mit X kennzeichnen)","          (mit X kennzeichnen)","(mit X kennzeichnen)   "]
[null,"in diesem Semester mit Ihnen persönlich besprochen."]
[]
[7.2,"Betriebliche Ausbildung",null,null,"sehr gut",null,null,null,"gut",null,null,null,"genügend",null,null,null,"ungenügend",null,null,null,"schwach",null,null,null,"schlecht"]
[]
[]
[null,"Wie ist die Ausbildung im Betrieb?"]
[]
[null,"Wie werde ich instruiert von meinen\nAusbildern oder Vorgesetzten?"]
[]
[]
[]
[null,"Wie ist das Betriebsklima?"]
[]
[]
[null,"Wie werde ich persönlich gefördert?"]
[]
[]
[null,"Begründungen und Ergänzungen"]
[]
[]
[]
[]
[]
[7.3,"Betreuung durch die Berufsbildnerin \noder den Berufsbildner"]
[]
[null,"Wie ist die Betreuung durch meinen\nBerufsbildner?"]
[]
[]
[]
[null,"Begründungen und Ergänzungen"]
[]
[]
[]
[]
[]
[]
["8.","Ziele für das nächste Semester"]
[null,"(Für jede Bewertung zwischen 1 und 3 Punkten muss jeweils ein Ziel vereinbart werden. Für Bewertungen mit 4 - 6 Punkten sind\n Zielvereinbarungen freiwillig.)"]
[]
[]
[]
[]
[]
[]
["9.","Diverses"]
[]
[]
[]
[]
[]
[]
["10.","Datum / Unterschriften"]
[]
[null,"Dieser Bildungsbericht wurde am ",null,null,null,null,null,null,null,null,null,"besprochen."]
[]
[null,"Unterschrift der verantwortlichen Berufsbildnerin /"]
[null,"des verantwortlichen Berufsbildners:",null,null,null,null,null,null,null,"Unterschrift der lernenden Person:"]
[]
[]
[]
[]
[null,"Visum der gesetzlichen Vertreterin / des gesetzlichen Vertreters:"]
[null,"Datum:",null,null,null,null,null,null,null,"Unterschrift:"]